[Event "Titled Tuesday Blitz June 15 2021"]
[White "Yanchenko, Roman"]
[Black "Avila Pavas, Santiago"]
[WhiteFideId "4137329"]
[BlackFideId "4437128"]
[WhiteElo "2514"]
[BlackElo "2244"]
[Result "1-0"]
[Round "08"]
[TimeControl "180+1"]
[Date "2021.06.15"]
[WhiteClock "0:00:11"]
[BlackClock "0:00:07"]

1. d4 {[%clk 0:03:00]}  Nf6 {[%clk 0:02:59]} 2. c4 {[%clk 0:03:01]}  c5 {[%clk 0:02:59]} 3. Nf3 {[%clk 0:03:01]}  cxd4 {[%clk 0:02:59]} 4. Nxd4 {[%clk 0:03:02]}  Nc6 {[%clk 0:03:00]} 5. Nc3 {[%clk 0:03:02]}  g6 {[%clk 0:03:00]} 6. e3 {[%clk 0:03:03]}  Bg7 {[%clk 0:03:00]} 7. Be2 {[%clk 0:03:03]}  O-O {[%clk 0:03:00]} 8. O-O {[%clk 0:03:03]}  d5 {[%clk 0:03:01]} 9. Bf3 {[%clk 0:02:52]}  Nxd4 {[%clk 0:02:33]} 10. Qxd4 {[%clk 0:02:51]}  dxc4 {[%clk 0:02:21]} 11. Qxc4 {[%clk 0:02:49]}  Be6 {[%clk 0:02:18]} 12. Qa4 {[%clk 0:02:49]}  Qb6 {[%clk 0:02:16]} 13. b3 {[%clk 0:02:39]}  Nd5 {[%clk 0:01:56]} 14. Nxd5 {[%clk 0:02:31]}  Bxd5 {[%clk 0:01:55]} 15. Rb1 {[%clk 0:02:32]}  Bxf3 {[%clk 0:01:54]} 16. gxf3 {[%clk 0:02:33]}  Rac8 {[%clk 0:01:48]} 17. Ba3 {[%clk 0:02:32]}  Bf6 {[%clk 0:01:46]} 18. Rbc1 {[%clk 0:02:31]}  Rfd8 {[%clk 0:01:42]} 19. Rxc8 {[%clk 0:02:25]}  Rxc8 {[%clk 0:01:43]} 20. Rd1 {[%clk 0:02:25]}  Kg7 {[%clk 0:01:16]} 21. Rd7 {[%clk 0:02:05]}  Qe6 {[%clk 0:01:08]} 22. Rxb7 {[%clk 0:02:05]}  Rd8 {[%clk 0:01:07]} 23. Kg2 {[%clk 0:01:29]}  Rd2 {[%clk 0:01:02]} 24. Qe4 {[%clk 0:01:29]}  Qa6 {[%clk 0:01:01]} 25. Bxe7 {[%clk 0:01:27]}  Rxa2 {[%clk 0:00:38]} 26. Qb4 {[%clk 0:00:36]}  Ra1 {[%clk 0:00:15]} 27. Bxf6+ {[%clk 0:00:20]}  Qxf6 {[%clk 0:00:16]} 28. Qe7 {[%clk 0:00:19]}  Qf5 {[%clk 0:00:09]} 29. Rxa7 {[%clk 0:00:18]}  Rc1 {[%clk 0:00:04]} 30. h3 {[%clk 0:00:15]}  Qd5 {[%clk 0:00:03]} 31. Qe4 {[%clk 0:00:12]}  Qb5 {[%clk 0:00:03]} 32. Qd4+ {[%clk 0:00:12]}  Kh6 {[%clk 0:00:03]} 33. Rxf7 {[%clk 0:00:10]}  Qf1+ {[%clk 0:00:03]} 34. Kg3 {[%clk 0:00:11]}  Qg1+ {[%clk 0:00:03]} 35. Kf4 {[%clk 0:00:11]}  Qg5+ {[%clk 0:00:02]} 36. Ke4 {[%clk 0:00:12]}  Rc5 {[%clk 0:00:02]} 37. Qg7+ {[%clk 0:00:11]}  Kh5 {[%clk 0:00:03]} 38. Qxh7+ {[%clk 0:00:11]}  Qh6 {[%clk 0:00:03]} 39. Qxh6+ {[%clk 0:00:12]}  Kxh6 {[%clk 0:00:04]} 40. Rb7 {[%clk 0:00:09]}  Rh5 {[%clk 0:00:03]} 41. b4 {[%clk 0:00:08]}  Rxh3 {[%clk 0:00:04]} 42. b5 {[%clk 0:00:08]}  Rh1 {[%clk 0:00:05]} 43. b6 {[%clk 0:00:08]}  Rb1 {[%clk 0:00:05]} 44. Rb8 {[%clk 0:00:09]}  g5 {[%clk 0:00:05]} 45. f4 {[%clk 0:00:09]}  gxf4 {[%clk 0:00:04]} 46. Kxf4 {[%clk 0:00:09]}  Kg6 {[%clk 0:00:04]} 47. e4 {[%clk 0:00:09]}  Kg7 {[%clk 0:00:05]} 48. f3 {[%clk 0:00:09]}  Rb5 {[%clk 0:00:05]} 49. e5 {[%clk 0:00:09]}  Kf7 {[%clk 0:00:06]} 50. Kf5 {[%clk 0:00:10]}  Ke7 {[%clk 0:00:06]} 51. Rb7+ {[%clk 0:00:10]}  Kd8 {[%clk 0:00:06]} 52. Kf6 {[%clk 0:00:10]}  Kc8 {[%clk 0:00:07]} 53. Rh7 {[%clk 0:00:11]}  Rxb6+ {[%clk 0:00:06]} 54. e6 {[%clk 0:00:11]}  Kd8 {[%clk 0:00:07]} 55. f4 {[%clk 0:00:11]}  Ke8 {[%clk 0:00:07]} 56. Rh8# {[%clk 0:00:11]} 1-0


[Site "https://www.chess.com"]

[Event "Titled Tuesday Blitz June 15 2021"]
[White "Yoo, Christopher Woojin"]
[Black "Weetik, Vjacheslav"]
[WhiteFideId "30909694"]
[BlackFideId "4153472"]
[WhiteElo "2009"]
[BlackElo "2469"]
[Result "1-0"]
[Round "08"]
[TimeControl "180+1"]
[Date "2021.06.15"]
[WhiteClock "0:00:07"]
[BlackClock "0:00:01"]

1. e4 {[%clk 0:03:00]}  d5 {[%clk 0:02:59]} 2. exd5 {[%clk 0:03:00]}  Qxd5 {[%clk 0:02:59]} 3. Nc3 {[%clk 0:02:58]}  Qd6 {[%clk 0:02:58]} 4. g3 {[%clk 0:02:48]}  Nf6 {[%clk 0:02:57]} 5. Bg2 {[%clk 0:02:42]}  Bg4 {[%clk 0:02:51]} 6. Nge2 {[%clk 0:02:41]}  c6 {[%clk 0:02:38]} 7. h3 {[%clk 0:02:34]}  Bh5 {[%clk 0:02:37]} 8. d3 {[%clk 0:02:34]}  Nbd7 {[%clk 0:02:27]} 9. g4 {[%clk 0:02:30]}  Bg6 {[%clk 0:02:27]} 10. Nf4 {[%clk 0:02:30]}  e5 {[%clk 0:02:21]} 11. Nxg6 {[%clk 0:02:22]}  hxg6 {[%clk 0:02:22]} 12. Qe2 {[%clk 0:02:20]}  O-O-O {[%clk 0:02:11]} 13. Bd2 {[%clk 0:02:19]}  Nc5 {[%clk 0:02:05]} 14. O-O-O {[%clk 0:02:11]}  Qc7 {[%clk 0:02:02]} 15. Rhe1 {[%clk 0:01:54]}  Bd6 {[%clk 0:01:59]} 16. Be3 {[%clk 0:01:53]}  Ne6 {[%clk 0:01:56]} 17. g5 {[%clk 0:01:37]}  Nh5 {[%clk 0:01:52]} 18. Qg4 {[%clk 0:01:37]}  Kb8 {[%clk 0:01:42]} 19. Ne4 {[%clk 0:01:27]}  Bb4 {[%clk 0:01:28]} 20. c3 {[%clk 0:01:24]}  Ba5 {[%clk 0:01:29]} 21. Bf1 {[%clk 0:01:19]}  Nhf4 {[%clk 0:01:23]} 22. Kb1 {[%clk 0:01:18]}  Bb6 {[%clk 0:01:22]} 23. Bxb6 {[%clk 0:00:57]}  axb6 {[%clk 0:01:18]} 24. h4 {[%clk 0:00:50]}  Rd7 {[%clk 0:01:15]} 25. Qg3 {[%clk 0:00:42]}  b5 {[%clk 0:01:12]} 26. Nd2 {[%clk 0:00:40]}  Nc5 {[%clk 0:00:56]} 27. Re3 {[%clk 0:00:37]}  Rhd8 {[%clk 0:00:53]} 28. Ne4 {[%clk 0:00:34]}  Nxe4 {[%clk 0:00:34]} 29. Rxe4 {[%clk 0:00:35]}  f6 {[%clk 0:00:26]} 30. gxf6 {[%clk 0:00:26]}  gxf6 {[%clk 0:00:27]} 31. a4 {[%clk 0:00:20]}  f5 {[%clk 0:00:24]} 32. Rb4 {[%clk 0:00:19]}  bxa4 {[%clk 0:00:23]} 33. Rxa4 {[%clk 0:00:20]}  c5 {[%clk 0:00:18]} 34. Re1 {[%clk 0:00:11]}  Nxd3 {[%clk 0:00:14]} 35. Bxd3 {[%clk 0:00:10]}  Rxd3 {[%clk 0:00:14]} 36. Qxe5 {[%clk 0:00:10]}  Rd1+ {[%clk 0:00:12]} 37. Ka2 {[%clk 0:00:10]}  Rxe1 {[%clk 0:00:03]} 38. Qxe1 {[%clk 0:00:11]}  Qf7+ {[%clk 0:00:02]} 39. c4 {[%clk 0:00:10]}  Qf6 {[%clk 0:00:01]} 40. Qa5 {[%clk 0:00:10]}  Qd6 {[%clk 0:00:01]} 41. Qa7+ {[%clk 0:00:08]}  Kc7 {[%clk 0:00:01]} 42. Ra5 {[%clk 0:00:07]} 1-0


[Site "https://www.chess.com"]

[Event "Titled Tuesday Blitz June 15 2021"]
[White "Zemach, Roee"]
[Black "Shahade, Gregory"]
[WhiteFideId "2818531"]
[BlackFideId "2009064"]
[WhiteElo "2131"]
[BlackElo "2725"]
[Result "0-1"]
[Round "08"]
[TimeControl "180+1"]
[Date "2021.06.15"]
[WhiteClock "0:00:40"]
[BlackClock "0:00:56"]

1. d4 {[%clk 0:03:00]}  Nf6 {[%clk 0:02:59]} 2. c4 {[%clk 0:02:59]}  g6 {[%clk 0:03:00]} 3. g3 {[%clk 0:02:59]}  Bg7 {[%clk 0:02:58]} 4. Bg2 {[%clk 0:02:59]}  d5 {[%clk 0:02:58]} 5. cxd5 {[%clk 0:03:00]}  Nxd5 {[%clk 0:02:59]} 6. Nf3 {[%clk 0:03:00]}  Nb6 {[%clk 0:02:59]} 7. O-O {[%clk 0:03:00]}  Nc6 {[%clk 0:02:59]} 8. e3 {[%clk 0:02:58]}  O-O {[%clk 0:03:00]} 9. Nc3 {[%clk 0:02:58]}  Re8 {[%clk 0:03:00]} 10. Nh4 {[%clk 0:02:56]}  a5 {[%clk 0:03:00]} 11. f4 {[%clk 0:02:55]}  a4 {[%clk 0:02:57]} 12. Nf3 {[%clk 0:02:34]}  Be6 {[%clk 0:02:53]} 13. Re1 {[%clk 0:02:30]}  Nd5 {[%clk 0:02:43]} 14. Nxd5 {[%clk 0:02:27]}  Qxd5 {[%clk 0:02:28]} 15. e4 {[%clk 0:02:23]}  Bxd4+ {[%clk 0:02:28]} 16. Kh1 {[%clk 0:02:14]}  Qc5 {[%clk 0:02:24]} 17. Nxd4 {[%clk 0:01:58]}  Qxd4 {[%clk 0:02:22]} 18. Be3 {[%clk 0:01:45]}  Qxd1 {[%clk 0:01:58]} 19. Rexd1 {[%clk 0:01:46]}  Red8 {[%clk 0:01:54]} 20. a3 {[%clk 0:01:43]}  Bb3 {[%clk 0:01:54]} 21. Rxd8+ {[%clk 0:01:40]}  Rxd8 {[%clk 0:01:55]} 22. e5 {[%clk 0:01:41]}  Bd5 {[%clk 0:01:49]} 23. Rc1 {[%clk 0:01:27]}  Bxg2+ {[%clk 0:01:47]} 24. Kxg2 {[%clk 0:01:28]}  Rd3 {[%clk 0:01:48]} 25. Kf2 {[%clk 0:01:28]}  Rb3 {[%clk 0:01:45]} 26. Rc2 {[%clk 0:01:28]}  Kf8 {[%clk 0:01:42]} 27. Ke2 {[%clk 0:01:24]}  Ke8 {[%clk 0:01:41]} 28. Bf2 {[%clk 0:01:17]}  h5 {[%clk 0:01:40]} 29. Rd2 {[%clk 0:01:12]}  e6 {[%clk 0:01:37]} 30. Bc5 {[%clk 0:01:09]}  b6 {[%clk 0:01:33]} 31. Bf2 {[%clk 0:01:09]}  Ne7 {[%clk 0:01:33]} 32. Rc2 {[%clk 0:01:09]}  Nd5 {[%clk 0:01:33]} 33. Bg1 {[%clk 0:01:03]}  Kd7 {[%clk 0:01:29]} 34. Bf2 {[%clk 0:01:02]}  c5 {[%clk 0:01:27]} 35. Bg1 {[%clk 0:01:00]}  Kc6 {[%clk 0:01:27]} 36. Bf2 {[%clk 0:00:59]}  h4 {[%clk 0:01:27]} 37. Rd2 {[%clk 0:00:50]}  b5 {[%clk 0:01:23]} 38. Rc2 {[%clk 0:00:50]}  c4 {[%clk 0:01:23]} 39. Rd2 {[%clk 0:00:47]}  c3 {[%clk 0:01:18]} 40. bxc3 {[%clk 0:00:47]}  Rxc3 {[%clk 0:01:08]} 41. Bd4 {[%clk 0:00:46]}  Rxa3 {[%clk 0:01:03]} 42. Rc2+ {[%clk 0:00:46]}  Kb7 {[%clk 0:01:04]} 43. Rc5 {[%clk 0:00:42]}  Rb3 {[%clk 0:00:59]} 44. gxh4 {[%clk 0:00:40]}  Nxf4+ {[%clk 0:00:57]} 45. Kd2 {[%clk 0:00:40]}  Rd3+ {[%clk 0:00:56]} 0-1


[Site "https://www.chess.com"]

[Event "Titled Tuesday Blitz June 15 2021"]
[White "Zhigalko, Sergei"]
[Black "Demchenko, Anton"]
[WhiteFideId "13502956"]
[BlackFideId "4160258"]
[WhiteElo "2662"]
[BlackElo "2593"]
[Result "0-1"]
[Round "08"]
[TimeControl "180+1"]
[Date "2021.06.15"]
[WhiteClock "0:00:02"]
[BlackClock "0:00:04"]

1. e4 {[%clk 0:03:00]}  e5 {[%clk 0:02:55]} 2. Nf3 {[%clk 0:03:01]}  Nc6 {[%clk 0:02:56]} 3. Bc4 {[%clk 0:03:01]}  Nf6 {[%clk 0:02:56]} 4. d3 {[%clk 0:03:01]}  Be7 {[%clk 0:02:51]} 5. O-O {[%clk 0:03:01]}  O-O {[%clk 0:02:51]} 6. Nbd2 {[%clk 0:03:01]}  d6 {[%clk 0:02:52]} 7. c3 {[%clk 0:03:01]}  Kh8 {[%clk 0:02:50]} 8. Re1 {[%clk 0:02:52]}  Ng8 {[%clk 0:02:43]} 9. d4 {[%clk 0:02:52]}  Bg4 {[%clk 0:02:42]} 10. h3 {[%clk 0:02:51]}  Bh5 {[%clk 0:02:42]} 11. Be2 {[%clk 0:02:38]}  exd4 {[%clk 0:02:20]} 12. cxd4 {[%clk 0:02:28]}  d5 {[%clk 0:02:21]} 13. e5 {[%clk 0:02:23]}  Bb4 {[%clk 0:02:21]} 14. a3 {[%clk 0:02:04]}  Ba5 {[%clk 0:02:19]} 15. b4 {[%clk 0:02:00]}  Bb6 {[%clk 0:02:19]} 16. Nb3 {[%clk 0:02:01]}  f6 {[%clk 0:01:48]} 17. e6 {[%clk 0:01:48]}  Nge7 {[%clk 0:01:48]} 18. Bf4 {[%clk 0:01:34]}  Bxf3 {[%clk 0:01:44]} 19. Bxf3 {[%clk 0:01:33]}  Nf5 {[%clk 0:01:45]} 20. b5 {[%clk 0:01:23]}  Nce7 {[%clk 0:01:43]} 21. a4 {[%clk 0:01:23]}  a5 {[%clk 0:01:39]} 22. Qd3 {[%clk 0:01:23]}  Nd6 {[%clk 0:01:32]} 23. Nc5 {[%clk 0:01:21]}  Bxc5 {[%clk 0:01:26]} 24. dxc5 {[%clk 0:01:21]}  Nc4 {[%clk 0:01:26]} 25. Rad1 {[%clk 0:00:57]}  Nb2 {[%clk 0:01:25]} 26. Qc2 {[%clk 0:00:52]}  Nxd1 {[%clk 0:01:25]} 27. Rxd1 {[%clk 0:00:53]}  c6 {[%clk 0:01:25]} 28. Bd6 {[%clk 0:00:49]}  Re8 {[%clk 0:01:21]} 29. Re1 {[%clk 0:00:46]}  Nc8 {[%clk 0:00:45]} 30. Bf4 {[%clk 0:00:46]}  Ne7 {[%clk 0:00:41]} 31. Bd6 {[%clk 0:00:46]}  Nc8 {[%clk 0:00:41]} 32. Bf4 {[%clk 0:00:43]}  Ne7 {[%clk 0:00:41]} 33. Bh5 {[%clk 0:00:44]}  g6 {[%clk 0:00:40]} 34. Bg4 {[%clk 0:00:40]}  h5 {[%clk 0:00:35]} 35. Bf3 {[%clk 0:00:35]}  Kg7 {[%clk 0:00:35]} 36. Bd6 {[%clk 0:00:33]}  Rh8 {[%clk 0:00:28]} 37. bxc6 {[%clk 0:00:27]}  bxc6 {[%clk 0:00:28]} 38. Rb1 {[%clk 0:00:27]}  Ra7 {[%clk 0:00:28]} 39. g4 {[%clk 0:00:19]}  hxg4 {[%clk 0:00:28]} 40. hxg4 {[%clk 0:00:20]}  Qg8 {[%clk 0:00:23]} 41. Qc3 {[%clk 0:00:13]}  Qxe6 {[%clk 0:00:19]} 42. Re1 {[%clk 0:00:10]}  Qf7 {[%clk 0:00:20]} 43. g5 {[%clk 0:00:09]}  Nf5 {[%clk 0:00:20]} 44. gxf6+ {[%clk 0:00:10]}  Kh7 {[%clk 0:00:20]} 45. Bg4 {[%clk 0:00:06]}  Re8 {[%clk 0:00:11]} 46. Rd1 {[%clk 0:00:02]}  Re4 {[%clk 0:00:08]} 47. Qh3+ {[%clk 0:00:01]}  Kg8 {[%clk 0:00:08]} 48. f3 {[%clk 0:00:02]}  Re2 {[%clk 0:00:05]} 49. Bxf5 {[%clk 0:00:01]}  gxf5 {[%clk 0:00:06]} 50. Qxf5 {[%clk 0:00:02]}  Qh7 {[%clk 0:00:02]} 51. Qc8+ {[%clk 0:00:02]}  Kf7 {[%clk 0:00:02]} 52. Qg4 {[%clk 0:00:02]}  Qg6 {[%clk 0:00:02]} 53. Kf1 {[%clk 0:00:02]}  Re3 {[%clk 0:00:02]} 54. Kf2 {[%clk 0:00:02]}  Qxg4 {[%clk 0:00:02]} 55. fxg4 {[%clk 0:00:03]}  Ra3 {[%clk 0:00:01]} 56. g5 {[%clk 0:00:03]}  Rxa4 {[%clk 0:00:02]} 57. Rh1 {[%clk 0:00:04]}  Kg6 {[%clk 0:00:03]} 58. Rh8 {[%clk 0:00:03]}  Rg4 {[%clk 0:00:02]} 59. Rg8+ {[%clk 0:00:03]}  Kh7 {[%clk 0:00:02]} 60. Rg7+ {[%clk 0:00:03]}  Rxg7 {[%clk 0:00:01]} 61. Kf3 {[%clk 0:00:04]}  R4xg5 {[%clk 0:00:01]} 62. Kf4 {[%clk 0:00:04]}  Rf7 {[%clk 0:00:01]} 63. Kxg5 {[%clk 0:00:04]}  a4 {[%clk 0:00:02]} 64. Kf5 {[%clk 0:00:04]}  a3 {[%clk 0:00:02]} 65. Ke6 {[%clk 0:00:04]}  Kg6 {[%clk 0:00:03]} 66. Be5 {[%clk 0:00:05]}  a2 {[%clk 0:00:03]} 67. Ba1 {[%clk 0:00:06]}  Rb7 {[%clk 0:00:03]} 68. Bd4 {[%clk 0:00:06]}  Rb4 {[%clk 0:00:04]} 69. f7 {[%clk 0:00:06]}  Rxd4 {[%clk 0:00:03]} 70. f8=Q {[%clk 0:00:06]}  a1=Q {[%clk 0:00:03]} 71. Qg8+ {[%clk 0:00:05]}  Kh5 {[%clk 0:00:03]} 72. Qh8+ {[%clk 0:00:02]}  Kg4 {[%clk 0:00:04]} 73. Qxd4+ {[%clk 0:00:02]}  Qxd4 {[%clk 0:00:04]} 0-1


[Site "https://www.chess.com"]

[Event "Titled Tuesday Blitz June 15 2021"]
[White "Andreikin, Dmitry"]
[Black "Khusnutdinov, Rustam"]
[WhiteFideId "4158814"]
[BlackFideId "13701703"]
[WhiteElo "2782"]
[BlackElo "2571"]
[Result "1/2-1/2"]
[Round "09"]
[TimeControl "180+1"]
[Date "2021.06.15"]
[WhiteClock "0:00:25"]
[BlackClock "0:00:47"]

1. d4 {[%clk 0:03:00]}  Nf6 {[%clk 0:02:59]} 2. Bg5 {[%clk 0:03:00]}  Ne4 {[%clk 0:02:57]} 3. Bf4 {[%clk 0:03:00]}  c5 {[%clk 0:02:57]} 4. f3 {[%clk 0:02:57]}  Qa5+ {[%clk 0:02:57]} 5. c3 {[%clk 0:02:57]}  Nf6 {[%clk 0:02:57]} 6. d5 {[%clk 0:02:57]}  Qb6 {[%clk 0:02:53]} 7. Bc1 {[%clk 0:02:56]}  e6 {[%clk 0:02:53]} 8. e4 {[%clk 0:02:55]}  exd5 {[%clk 0:02:51]} 9. exd5 {[%clk 0:02:56]}  Bd6 {[%clk 0:02:47]} 10. Na3 {[%clk 0:02:56]}  O-O {[%clk 0:02:47]} 11. Nc4 {[%clk 0:02:55]}  Qc7 {[%clk 0:02:46]} 12. Nxd6 {[%clk 0:02:52]}  Qxd6 {[%clk 0:02:45]} 13. c4 {[%clk 0:02:19]}  Re8+ {[%clk 0:02:40]} 14. Ne2 {[%clk 0:02:08]}  b5 {[%clk 0:02:36]} 15. Kf2 {[%clk 0:02:07]}  bxc4 {[%clk 0:02:21]} 16. Nc3 {[%clk 0:02:07]}  Ba6 {[%clk 0:02:22]} 17. Be2 {[%clk 0:01:55]}  Qe5 {[%clk 0:02:21]} 18. Re1 {[%clk 0:01:47]}  d6 {[%clk 0:01:59]} 19. Bf1 {[%clk 0:01:31]}  Qxh2 {[%clk 0:01:52]} 20. Rxe8+ {[%clk 0:01:22]}  Nxe8 {[%clk 0:01:53]} 21. Qa4 {[%clk 0:01:14]}  Qh4+ {[%clk 0:01:39]} 22. g3 {[%clk 0:01:11]}  Qd8 {[%clk 0:01:37]} 23. Bg5 {[%clk 0:01:04]}  Qd7 {[%clk 0:01:37]} 24. Bh3 {[%clk 0:00:47]}  Qxa4 {[%clk 0:01:32]} 25. Nxa4 {[%clk 0:00:48]}  Bb5 {[%clk 0:01:23]} 26. Nc3 {[%clk 0:00:47]}  Bd7 {[%clk 0:01:23]} 27. Re1 {[%clk 0:00:44]}  h6 {[%clk 0:01:09]} 28. Bd8 {[%clk 0:00:38]}  Kf8 {[%clk 0:00:57]} 29. Be7+ {[%clk 0:00:35]}  Kg8 {[%clk 0:00:57]} 30. Bd8 {[%clk 0:00:30]}  Kf8 {[%clk 0:00:47]} 31. Be7+ {[%clk 0:00:28]}  Kg8 {[%clk 0:00:47]} 32. Bd8 {[%clk 0:00:25]} 1/2-1/2


[Site "https://www.chess.com"]

[Event "Titled Tuesday Blitz June 15 2021"]
[White "Annaberdiyev, Babageldi"]
[Black "Kamsky, Gata"]
[WhiteFideId "14000385"]
[BlackFideId "2000024"]
[WhiteElo "2332"]
[BlackElo "2644"]
[Result "0-1"]
[Round "09"]
[TimeControl "180+1"]
[Date "2021.06.15"]
[WhiteClock "0:00:21"]
[BlackClock "0:00:47"]

1. e4 {[%clk 0:03:00]}  c5 {[%clk 0:02:58]} 2. Nf3 {[%clk 0:03:01]}  e6 {[%clk 0:02:57]} 3. d3 {[%clk 0:03:00]}  Nc6 {[%clk 0:02:54]} 4. Nbd2 {[%clk 0:03:01]}  g6 {[%clk 0:02:54]} 5. g3 {[%clk 0:03:01]}  Bg7 {[%clk 0:02:54]} 6. h4 {[%clk 0:03:00]}  h6 {[%clk 0:02:53]} 7. Bg2 {[%clk 0:03:00]}  d6 {[%clk 0:02:53]} 8. O-O {[%clk 0:02:53]}  Nge7 {[%clk 0:02:53]} 9. Re1 {[%clk 0:02:54]}  O-O {[%clk 0:02:50]} 10. c3 {[%clk 0:02:54]}  e5 {[%clk 0:02:50]} 11. a4 {[%clk 0:02:37]}  Be6 {[%clk 0:02:48]} 12. h5 {[%clk 0:02:27]}  g5 {[%clk 0:02:47]} 13. Nh2 {[%clk 0:02:28]}  f5 {[%clk 0:02:45]} 14. exf5 {[%clk 0:02:23]}  Bxf5 {[%clk 0:02:43]} 15. Ne4 {[%clk 0:02:23]}  Qd7 {[%clk 0:02:36]} 16. Be3 {[%clk 0:02:17]}  b6 {[%clk 0:02:30]} 17. b4 {[%clk 0:02:18]}  d5 {[%clk 0:02:29]} 18. bxc5 {[%clk 0:02:10]}  dxe4 {[%clk 0:02:28]} 19. dxe4 {[%clk 0:02:11]}  Qxd1 {[%clk 0:02:25]} 20. Raxd1 {[%clk 0:02:12]}  Be6 {[%clk 0:02:17]} 21. Rd6 {[%clk 0:02:08]}  Bf7 {[%clk 0:02:09]} 22. cxb6 {[%clk 0:02:03]}  axb6 {[%clk 0:02:08]} 23. Bxb6 {[%clk 0:02:04]}  Rxa4 {[%clk 0:02:03]} 24. Ng4 {[%clk 0:02:03]}  Kh7 {[%clk 0:02:01]} 25. Ne3 {[%clk 0:01:59]}  Bxh5 {[%clk 0:01:58]} 26. Rd7 {[%clk 0:01:58]}  Rf7 {[%clk 0:01:51]} 27. Rc7 {[%clk 0:01:55]}  Ra6 {[%clk 0:01:48]} 28. Bc5 {[%clk 0:01:40]}  Ng8 {[%clk 0:01:45]} 29. Rc8 {[%clk 0:01:40]}  Nce7 {[%clk 0:01:33]} 30. Re8 {[%clk 0:01:29]}  Rc6 {[%clk 0:01:28]} 31. Bb4 {[%clk 0:01:21]}  Rc8 {[%clk 0:01:28]} 32. Rxc8 {[%clk 0:01:16]}  Nxc8 {[%clk 0:01:28]} 33. Ra1 {[%clk 0:01:17]}  Bg6 {[%clk 0:01:21]} 34. Nf5 {[%clk 0:01:16]}  g4 {[%clk 0:01:14]} 35. Ra5 {[%clk 0:01:09]}  Bf6 {[%clk 0:01:08]} 36. f3 {[%clk 0:00:52]}  gxf3 {[%clk 0:01:07]} 37. Bxf3 {[%clk 0:00:53]}  Ra7 {[%clk 0:01:06]} 38. Rd5 {[%clk 0:00:42]}  Nce7 {[%clk 0:01:05]} 39. Nxe7 {[%clk 0:00:38]}  Nxe7 {[%clk 0:01:04]} 40. Rc5 {[%clk 0:00:38]}  h5 {[%clk 0:01:02]} 41. Kf2 {[%clk 0:00:35]}  Bf7 {[%clk 0:00:54]} 42. Ba5 {[%clk 0:00:26]}  h4 {[%clk 0:00:50]} 43. gxh4 {[%clk 0:00:26]}  Bxh4+ {[%clk 0:00:50]} 44. Ke2 {[%clk 0:00:27]}  Ng6 {[%clk 0:00:50]} 45. Bg4 {[%clk 0:00:23]}  Be7 {[%clk 0:00:47]} 46. Rb5 {[%clk 0:00:21]}  Bc4+ {[%clk 0:00:47]} 0-1


[Site "https://www.chess.com"]

[Event "Titled Tuesday Blitz June 15 2021"]
[White "Bluebaum, Matthias"]
[Black "Colas, Joshua"]
[WhiteFideId "24651516"]
[BlackFideId "2044447"]
[WhiteElo "2685"]
[BlackElo "2347"]
[Result "1-0"]
[Round "09"]
[TimeControl "180+1"]
[Date "2021.06.15"]
[WhiteClock "0:01:19"]
[BlackClock "0:00:53"]

1. d4 {[%clk 0:03:00]}  d5 {[%clk 0:02:57]} 2. c4 {[%clk 0:03:01]}  e6 {[%clk 0:02:57]} 3. Nc3 {[%clk 0:03:01]}  Nf6 {[%clk 0:02:55]} 4. cxd5 {[%clk 0:03:00]}  exd5 {[%clk 0:02:56]} 5. Bg5 {[%clk 0:03:00]}  Nbd7 {[%clk 0:02:57]} 6. e3 {[%clk 0:03:00]}  c6 {[%clk 0:02:57]} 7. Bd3 {[%clk 0:03:01]}  Be7 {[%clk 0:02:57]} 8. h3 {[%clk 0:03:00]}  Nf8 {[%clk 0:02:53]} 9. Bf4 {[%clk 0:02:59]}  Ne6 {[%clk 0:02:50]} 10. Bh2 {[%clk 0:02:59]}  Bd6 {[%clk 0:02:50]} 11. Bxd6 {[%clk 0:02:57]}  Qxd6 {[%clk 0:02:51]} 12. Nf3 {[%clk 0:02:58]}  O-O {[%clk 0:02:51]} 13. Qc2 {[%clk 0:02:57]}  Re8 {[%clk 0:02:40]} 14. O-O-O {[%clk 0:02:44]}  b5 {[%clk 0:02:33]} 15. Kb1 {[%clk 0:02:44]}  a5 {[%clk 0:02:33]} 16. Rc1 {[%clk 0:02:43]}  Ba6 {[%clk 0:02:23]} 17. g4 {[%clk 0:02:35]}  b4 {[%clk 0:02:06]} 18. Na4 {[%clk 0:02:32]}  Bxd3 {[%clk 0:02:03]} 19. Qxd3 {[%clk 0:02:33]}  Ne4 {[%clk 0:02:03]} 20. Rc2 {[%clk 0:02:32]}  c5 {[%clk 0:01:47]} 21. dxc5 {[%clk 0:02:24]}  N6xc5 {[%clk 0:01:47]} 22. Nxc5 {[%clk 0:02:21]}  Nxc5 {[%clk 0:01:47]} 23. Qb5 {[%clk 0:02:20]}  Ne4 {[%clk 0:01:38]} 24. Rd1 {[%clk 0:02:18]}  Qf6 {[%clk 0:01:38]} 25. Nd4 {[%clk 0:02:02]}  Nxf2 {[%clk 0:01:29]} 26. Rf1 {[%clk 0:01:47]}  Rxe3 {[%clk 0:01:29]} 27. Nf5 {[%clk 0:01:20]}  Rxh3 {[%clk 0:00:53]} 28. Rcxf2 {[%clk 0:01:19]} 1-0


[Site "https://www.chess.com"]